bitfinex/quotes_ETHUSD_20260217
["timestamp","ask_amount","ask_price","bid_price","bid_amount"]
[1771330729022,5.54672899,1974.4,1973.9,0.001]
[1771330730502,0.48054264,1974.3,1973.9,0.001]
[1771330733448,1.26633573,1974.2,1973.9,0.001]
[1771330734543,1.26633573,1974.2,1974.0,0.001]
[1771330735133,1.26633573,1974.2,1973.8,0.001]
[1771330741518,1.71941372,1974.2,1973.8,0.001]
[1771330745832,5.06644292,1974.3,1973.7,0.001]
[1771330746168,5.06644292,1974.3,1973.7,0.45728612]
[1771330746952,5.06644292,1974.3,1973.9,0.001]
[1771330747535,5.51952091,1974.3,1973.9,0.001]
[1771330749056,0.45307799,1974.2,1973.9,0.001]
[1771330749252,0.45307799,1974.2,1973.8,0.001]
[1771330750348,5.06644292,1974.3,1973.8,0.001]
[1771330750653,5.06644292,1974.3,1973.8,0.45728612]
[1771330755272,5.52098897,1974.3,1973.8,0.001]
[1771330755594,0.45454605,1974.2,1973.8,0.001]
[1771330757074,5.06644292,1974.3,1973.8,0.001]
[1771330757776,5.06644292,1974.3,1973.8,0.48050147]
[1771330759260,5.06644292,1974.3,1973.9,0.001]
[1771330759483,5.06644292,1974.3,1973.9,0.48050147]
[1771330759683,0.0011,1974.1,1973.9,0.48050147]
[1771330761066,0.0011,1974.1,1973.9,0.001]
[1771330771976,0.0011,1974.1,1974.0,0.001]
[1771330776234,0.0011,1974.1,1973.9,0.001]
[1771330776503,0.0011,1974.1,1973.8,0.001]
[1771330778009,1.26749987,1974.1,1973.8,0.001]
[1771330780930,0.0011,1974.1,1973.8,0.001]
[1771330784448,0.0011,1974.1,1973.9,0.001]
[1771330784645,0.0011,1974.0,1973.9,0.001]
[1771330787966,0.47292076,1974.0,1973.7,0.001]
[1771330788430,1.26652819,1973.9,1973.7,0.001]
[1771330789117,1.26652819,1973.9,1973.6,0.001]
[1771330789430,1.73834895,1973.9,1973.6,0.001]
[1771330789617,1.26652819,1973.9,1973.6,0.001]
[1771330792951,0.47366606,1973.8,1973.2,1.42752848]
[1771330794276,1.26665653,1973.7,1973.2,1.42752848]
[1771330794583,5.06616197,1973.9,1973.3,0.48552848]
[1771330795093,1.26756403,1974.0,1973.3,0.48552848]
[1771330796281,1.26756403,1974.0,1973.4,0.48552848]
[1771330796484,0.0011,1974.0,1973.6,0.48552848]
[1771330796784,1.26756672,1974.0,1973.6,0.48552848]
[1771330797462,0.0011,1973.8,1973.6,0.48552848]
[1771330798054,0.0011,1974.1,1973.6,0.48552848]
[1771330798055,0.0011,1973.9,1973.6,0.48552848]
[1771330798386,0.0011,1974.1,1974.0,0.48552848]
[1771330799289,0.0011,1974.1,1973.8,0.48552848]
[1771330800885,0.0011,1974.1,1973.9,0.48552848]
[1771330801060,0.0011,1974.2,1973.9,0.48552848]
[1771330802083,0.0011,1974.4,1974.0,0.48552848]
[1771330802252,0.0011,1974.4,1974.2,0.48552848]
[1771330803676,0.0011,1974.4,1974.3,1.75180006]
[1771330804782,0.0011,1974.4,1974.3,0.48552848]
[1771330805082,0.0011,1974.4,1974.2,1.26633573]
[1771330805388,0.0011,1974.4,1974.2,1.75186421]
[1771330805764,0.0011,1974.4,1974.3,0.48552848]
[1771330806780,0.0011,1974.6,1974.3,0.48552848]
[1771330806952,0.0011,1974.7,1974.3,0.48552848]
[1771330807981,0.0011,1974.7,1974.4,1.75173593]
[1771330808158,0.0011,1974.7,1974.6,0.48552848]
[1771330808367,0.0011,1975.0,1974.6,0.48552848]
[1771330809578,1.26692652,1975.0,1974.5,0.948]
[1771330809762,1.74059258,1975.0,1974.4,0.48552848]
[1771330809954,1.74059258,1975.0,1974.5,0.95]
[1771330810685,1.74059258,1975.0,1974.3,1.75274967]
[1771330810983,0.47366606,1974.8,1974.3,0.001]
[1771330811183,0.47366606,1974.8,1974.4,0.949]
[1771330812957,0.47366606,1974.8,1974.4,2.21518884]
[1771330813357,0.0011,1974.9,1974.4,2.70071732]
[1771330814284,1.26699025,1974.9,1974.4,2.70071732]
[1771330815588,1.74528139,1974.9,1974.4,0.949]
[1771330816573,1.74528139,1974.9,1974.4,2.21520251]
[1771330818978,0.47829114,1974.8,1974.4,0.949]
[1771330819160,1.74430623,1974.7,1974.4,0.949]
[1771330819361,0.47829114,1974.6,1974.4,0.949]
[1771330820077,1.26601509,1974.7,1974.4,0.949]
[1771330821062,0.47829114,1974.8,1974.4,0.949]
[1771330821264,1.74424212,1974.8,1974.4,0.949]
[1771330821786,1.26595098,1974.8,1974.4,0.949]
[1771330822258,1.26701466,1974.9,1974.4,0.949]
[1771330822464,0.0011,1974.9,1974.4,2.66918206]
[1771330822665,0.0011,1974.9,1974.5,0.45399699]
[1771330822893,0.0011,1974.9,1974.4,2.21518507]
[1771330823090,0.0011,1974.9,1974.4,2.21520579]
[1771330823278,0.0011,1974.6,1974.4,2.66920278]
[1771330823967,0.0011,1974.6,1974.5,0.951]
[1771330828010,0.0011,1974.6,1974.5,2.21714332]
[1771330828925,0.0011,1974.6,1974.5,0.951]
[1771330830416,0.0011,1974.6,1974.5,2.21714332]
[1771330830711,0.0011,1974.6,1974.5,0.951]
[1771330833717,0.0011,1974.6,1974.4,0.957]
[1771330834385,0.47829114,1974.4,1974.3,0.001]
[1771330834815,0.47829114,1974.4,1974.0,0.957]
[1771330835403,1.7454768,1974.6,1974.5,0.001]
[1771330835602,1.7454768,1974.6,1974.5,9.2e-05]
[1771330836318,0.47829114,1974.5,1974.0,0.957]
[1771330836523,1.74449859,1974.4,1974.0,0.957]
[1771330836822,1.74449859,1974.4,1974.2,0.001]
[1771330837022,1.74547149,1974.6,1974.2,0.001]
[1771330837419,0.0011,1974.6,1974.2,0.001]
[1771330838119,1.26717965,1974.6,1974.2,0.001]
[1771330838693,0.0011,1974.6,1974.2,0.001]
[1771330839625,0.0011,1974.6,1974.2,0.45499699]
[1771330840596,0.0011,1974.6,1974.3,1.26627158]
[1771330840800,0.0011,1974.6,1974.4,0.956]
[1771330841212,0.0011,1974.6,1974.4,1.40999699]
[1771330844134,0.0011,1974.6,1974.5,1.26614332]
[1771330844303,0.0011,1974.6,1974.5,1.72880099]
[1771330844498,0.0011,1974.6,1974.5,0.46265767]
[1771330844731,0.0011,1974.6,1974.4,2.22220745]
[1771330846700,0.0011,1974.6,1974.4,0.956]
[1771330846907,0.0011,1974.6,1974.5,0.961]
[1771330861121,0.0011,1974.6,1974.5,0.962]
[1771330861850,0.0011,1974.6,1974.4,0.963]
[1771330873079,0.0011,1974.6,1974.5,0.001]
[1771330875679,0.4615645,1974.6,1974.5,0.001]
[1771330875865,0.4615645,1974.6,1974.2,0.001]
[1771330876957,0.4615645,1974.6,1974.1,0.001]
[1771330876958,0.4604645,1974.3,1974.1,0.001]
[1771330877152,0.4604645,1974.5,1974.1,0.001]
[1771330877869,1.72667195,1974.4,1974.1,0.001]
[1771330879469,1.26620745,1974.4,1974.1,0.001]
[1771330881286,1.26720308,1974.6,1974.1,0.45994188]
[1771330881968,1.26720308,1974.6,1974.1,1.72630631]
[1771330882160,0.0011,1974.6,1974.1,1.72630631]
[1771330883783,0.0011,1974.6,1974.2,0.45894188]
[1771330884008,0.0011,1974.6,1974.2,1.7252153]
[1771330884187,0.0011,1974.6,1974.3,1.42094188]
[1771330885282,0.0011,1974.5,1974.3,1.42094188]
[1771330885652,0.0011,1974.5,1974.3,0.962]
[1771330886086,0.0011,1974.5,1974.3,0.964]
[1771330889277,0.0011,1974.5,1974.3,2.23026993]
[1771330889483,0.0011,1974.5,1974.3,2.68921181]
[1771330891907,0.0011,1974.7,1974.3,11.05854153]
[1771330892195,0.0011,1974.7,1974.3,2.68921181]
[1771330893298,0.0011,1974.7,1974.4,0.45894188]
[1771330893505,0.0011,1974.9,1974.5,0.45894188]
[1771330895007,0.0011,1974.9,1974.6,0.969]
[1771330896903,0.0011,1974.9,1974.6,2.2350665]
[1771330897206,0.0011,1974.8,1974.6,2.2350665]
[1771330898173,0.0011,1974.8,1974.6,2.69400838]
[1771330900584,0.0011,1975.1,1974.6,2.69400838]
[1771330902888,0.0011,1975.1,1974.7,0.45894188]
[1771330903403,0.0011,1975.3,1975.0,1.72476466]
[1771330903607,0.0011,1975.3,1975.1,0.976]
[1771330905586,0.0011,1975.6,1975.3,8.8282716]
[1771330905884,0.0011,1975.6,1975.4,0.978]
[1771330906518,1.73868743,1976.0,1975.4,1.47116652]
[1771330908289,1.73868743,1976.0,1975.5,1.2655024]
[1771330909179,0.0011,1975.9,1975.5,1.2655024]
[1771330909705,0.0011,1975.9,1975.5,1.75866892]
[1771330910412,0.0011,1975.9,1975.5,0.49316652]
[1771330912509,0.0011,1975.9,1975.5,1.75862849]
[1771330915911,0.45958827,1975.8,1975.5,0.983]
[1771330916412,0.45958827,1975.8,1975.3,0.983]
[1771330917187,1.72496256,1975.7,1975.3,0.983]
[1771330917415,0.45958827,1975.7,1975.3,0.983]
[1771330919117,0.45958827,1975.7,1975.2,0.983]
[1771330919295,0.45958827,1975.5,1974.8,1.26592986]
[1771330919626,0.45958827,1975.5,1975.1,0.982]
[1771330920615,1.26543834,1975.6,1975.1,0.982]
[1771330920797,1.72494542,1975.8,1975.1,10.28125972]
[1771330920983,0.45958827,1975.7,1975.1,9.8102716]
[1771330921184,1.26543834,1975.6,1974.8,0.47098812]
[1771330921536,1.26543834,1975.6,1974.9,1.45298812]
[1771330921816,1.26543834,1975.6,1975.0,0.47098812]
[1771330921992,1.26542345,1975.7,1975.4,0.001]
[1771330922319,0.45958827,1975.6,1975.4,0.001]
[1771330922915,1.26542345,1975.7,1975.4,0.001]
[1771330923100,1.72501172,1975.7,1975.4,0.001]
[1771330923927,0.45958827,1975.7,1975.4,0.001]
[1771330924121,1.72497839,1975.7,1975.4,0.001]
[1771330925799,1.26539012,1975.7,1975.4,0.001]
[1771330926889,1.72497839,1975.7,1975.4,0.001]
[1771330927889,0.45958827,1975.6,1975.4,0.001]
[1771330930428,1.72507123,1975.6,1975.4,0.001]
[1771330931011,0.45958827,1975.5,1975.4,0.001]
[1771330932327,1.72509067,1975.5,1975.4,0.001]
[1771330934628,1.2655024,1975.5,1975.4,0.001]
[1771330936630,1.73040537,1975.6,1975.4,0.001]
[1771330936935,0.0011,1975.6,1975.4,0.001]
[1771330937139,0.0011,1975.7,1975.4,0.45788317]
[1771330937299,0.0011,1975.9,1975.5,0.45688317]
[1771330937629,1.26634676,1975.9,1975.4,0.001]
[1771330937830,1.26634676,1975.9,1975.4,1.43488317]
[1771330938131,1.26774676,1975.9,1975.4,1.43488317]
[1771330939310,1.26774676,1975.9,1975.4,2.7004477]
[1771330939511,1.26774676,1975.9,1975.4,1.43488317]
[1771330940537,1.26774676,1975.9,1975.4,2.70044752]
[1771330940704,0.4663264,1975.9,1975.4,2.24356435]
[1771330940906,0.0025,1975.9,1975.4,2.70044752]
[1771330945622,0.0025,1975.9,1975.5,0.45688317]
[1771330946238,0.0025,1975.9,1975.6,0.45688317]
[1771330947435,0.0011,1975.8,1975.6,0.45688317]
[1771330948941,0.0011,1975.8,1975.6,1.72230375]
[1771330950760,0.0011,1975.8,1975.6,0.45688317]
[1771330951061,0.0011,1975.8,1975.5,0.001]
[1771330951756,1.26641025,1975.8,1975.5,0.001]
[1771330952043,0.0011,1975.8,1975.5,0.001]
[1771330952932,0.0011,1975.8,1975.5,9.27767916]
[1771330953847,0.0011,1975.8,1975.6,1.26543834]
[1771330954217,0.0011,1975.8,1975.5,10.54318156]
[1771330954415,0.0025,1975.8,1975.5,10.54318156]
[1771330955343,0.0011,1975.8,1975.5,10.54318156]
[1771330956243,0.0025,1975.8,1975.5,10.54318156]
[1771330956922,0.0025,1975.8,1975.5,1.2665024]
[1771330957523,0.0011,1976.1,1975.7,0.45688317]
[1771330957726,7.58722599,1977.4,1975.5,10.54318156]
[1771330957727,0.4638264,1976.5,1975.5,10.54318156]
[1771330957954,0.4638264,1976.5,1975.6,0.986]
[1771330958450,0.4638264,1976.3,1975.6,2.25138956]
[1771330959234,0.0011,1975.8,1975.6,2.25138956]
[1771330960553,0.0011,1975.8,1975.7,0.987]
[1771330973941,1.72562367,1976.1,1975.7,0.987]
[1771330974756,1.72562367,1976.1,1975.6,0.001]
[1771330974757,0.4594033,1976.0,1975.6,0.001]
[1771330974961,0.4594033,1976.0,1975.7,0.993]
[1771330975334,1.7245875,1976.0,1975.7,0.993]
[1771330977262,0.4594033,1976.0,1975.7,0.993]
[1771330977566,0.0011,1976.1,1975.7,2.25837375]
[1771330978356,0.4605033,1976.1,1975.7,0.993]
[1771330980793,0.4605033,1976.1,1975.6,0.001]
[1771330981088,0.4594033,1975.9,1975.6,0.001]
[1771330982980,1.26531025,1975.8,1975.6,0.001]
[1771330983282,1.72471355,1975.8,1975.6,0.001]
[1771330984095,1.72471355,1975.8,1975.7,0.001]
[1771330986628,1.26529378,1975.9,1975.7,0.001]
[1771330990204,1.26626803,1976.1,1975.7,0.001]
[1771330993511,1.72567133,1976.1,1975.7,0.001]
[1771330994416,1.71644576,1976.1,1975.7,0.001]
[1771330994595,0.45017773,1976.0,1975.7,0.001]
[1771330996216,0.45017773,1976.0,1975.8,0.001]
[1771330996420,1.26524621,1975.9,1975.8,0.001]
[1771330996920,1.71542394,1975.9,1975.8,0.001]
[1771330997418,1.26524621,1975.9,1975.8,0.001]
[1771330997785,1.26631862,1976.0,1975.8,0.001]
[1771330998426,1.26631862,1976.0,1975.7,0.001]
[1771330998427,0.45017773,1975.6,1975.5,0.001]
[1771330998635,0.45017773,1975.6,1975.1,0.001]
[1771330999415,8.81797797,1975.6,1975.1,0.001]
[1771330999600,0.45017773,1975.5,1975.1,0.001]
[1771331000615,1.71574419,1975.4,1975.1,0.001]
[1771331001121,0.45017773,1975.3,1974.7,0.989]
[1771331002415,0.45017773,1975.3,1974.7,0.001]
[1771331002716,1.71587234,1975.2,1974.7,0.001]
[1771331005083,2.37069094,1975.3,1974.7,0.48574702]
[1771331005322,1.26569094,1975.3,1974.7,0.48574702]
[1771331005484,0.45017773,1975.6,1974.7,0.48574702]
[1771331005686,1.106,1975.5,1974.7,0.48574702]
[1771331007408,1.26556646,1975.4,1974.9,0.48474702]
[1771331008617,1.26556646,1975.4,1974.9,0.38394702]
[1771331009522,1.26556646,1975.4,1974.9,1.64981085]
[1771331009704,1.26555077,1975.5,1974.9,1.64981085]
[1771331010022,1.26555077,1975.5,1975.0,0.001]
[1771331010427,0.0011,1975.4,1975.0,0.001]
[1771331012194,0.0011,1975.4,1975.0,0.48574702]
[1771331014323,0.45127773,1975.4,1975.0,0.001]
[1771331015430,0.0011,1975.4,1975.0,0.001]
[1771331015930,0.0011,1975.4,1975.0,1.75155342]
[1771331022847,0.0011,1975.3,1975.0,1.75155342]
[1771331023647,0.0011,1975.3,1975.0,0.001]
[1771331023946,0.0011,1975.3,1975.0,1.2668114]
[1771331026818,0.0011,1975.3,1975.0,0.001]
[1771331034851,0.0011,1975.2,1975.0,0.001]
[1771331039852,0.0011,1975.2,1975.0,0.49300584]
[1771331040051,0.0011,1975.2,1975.0,1.7588281]
[1771331044963,0.45150687,1975.2,1975.0,0.001]
[1771331045263,0.45150687,1975.2,1974.9,1.001]
[1771331046129,0.45150687,1975.2,1975.0,0.001]
[1771331046355,0.45150687,1975.2,1974.7,0.001]
[1771331047349,0.45040687,1975.0,1974.7,0.001]
[1771331048464,1.26575869,1975.1,1974.7,0.001]
[1771331048632,1.71616556,1975.1,1974.7,0.001]
[1771331053280,0.45040687,1975.0,1974.7,0.001]
[1771331054376,1.71628102,1975.0,1974.7,0.001]
[1771331055586,0.4780391,1974.9,1974.7,0.001]
[1771331056578,1.26595098,1974.8,1974.7,0.001]
[1771331058952,5.54162783,1974.9,1974.7,0.001]
[1771331061271,1.74392598,1974.9,1974.7,0.001]
[1771331063486,1.26588688,1974.9,1974.7,0.001]
[1771331064268,1.26588688,1974.9,1974.2,0.001]
[1771331064269,0.4780391,1974.7,1974.2,0.001]
[1771331065670,1.7441183,1974.6,1974.2,0.001]
[1771331068685,0.4780391,1974.5,1974.2,0.001]
[1771331069895,0.4780391,1974.5,1974.3,0.001]
[1771331070772,0.4780391,1974.5,1974.0,0.001]
[1771331070773,1.74424655,1974.4,1974.0,0.001]
[1771331071497,0.4780391,1974.3,1974.0,0.001]
[1771331072996,1.26633573,1974.2,1974.0,0.001]
[1771331077979,1.26633573,1974.2,1973.9,0.001]
[1771331077980,1.74437483,1974.2,1973.9,0.001]
[1771331078303,0.4780391,1974.1,1973.5,0.45125422]
[1771331079008,0.4780391,1974.1,1973.3,0.45225422]
[1771331079384,1.74450313,1974.0,1973.3,0.45225422]
[1771331079701,0.4780391,1973.9,1973.3,0.001]
[1771331080478,8.82563537,1973.8,1973.3,0.001]
[1771331080681,0.4780391,1973.7,1973.3,0.001]
[1771331081492,1.74482399,1973.5,1972.9,1.30565422]
[1771331081888,1.74482399,1973.5,1973.4,0.001]
[1771331082093,1.74482399,1973.5,1972.9,1.30565422]
[1771331082700,1.74482399,1973.5,1972.9,2.57281911]
[1771331083008,1.74482399,1973.5,1973.3,0.001]
[1771331084991,1.74482399,1973.5,1973.1,0.001]
[1771331085396,0.46175737,1973.4,1973.1,0.001]
[1771331085709,10.09254245,1973.4,1972.7,0.46444521]
[1771331085909,0.46175737,1973.3,1972.7,0.46444521]
[1771331088302,1.26697749,1973.2,1972.7,0.46444521]
[1771331088678,1.26687274,1973.4,1972.8,0.46444521]
[1771331088900,1.26683485,1973.5,1972.8,0.46444521]
[1771331089090,0.46175737,1973.7,1973.0,0.46444521]
[1771331089416,1.58375737,1973.8,1973.0,0.46444521]
[1771331090893,1.26664123,1973.8,1973.2,0.46444521]
[1771331091225,1.2665712,1973.9,1973.2,0.46444521]
[1771331091922,1.26752837,1974.1,1973.4,0.47931763]
[1771331092730,0.0011,1974.1,1973.4,0.47931763]
[1771331092896,0.0011,1974.1,1973.6,0.47931763]
[1771331094700,0.0011,1974.1,1973.8,0.47931763]
[1771331094929,0.0011,1974.1,1973.9,0.47931763]
[1771331095130,0.0011,1974.1,1973.8,1.26658311]
[1771331095399,0.0011,1974.1,1973.7,1.74597172]
[1771331095593,0.0011,1974.1,1973.7,1.26665409]
[1771331095806,0.0011,1974.1,1973.8,0.47931763]
[1771331096031,0.0011,1974.0,1973.8,0.47931763]
[1771331098835,0.0011,1974.0,1973.6,5.54618699]
[1771331099630,0.0011,1974.0,1973.7,0.47931763]
[1771331100204,0.0011,1974.0,1973.7,1.46931763]
[1771331101134,0.0011,1974.0,1973.7,2.73597258]
[1771331102238,0.0011,1974.0,1973.7,0.991]
[1771331103934,0.0011,1974.0,1973.7,2.25761564]
[1771331104118,0.0011,1974.0,1973.7,2.73693327]
[1771331104308,0.0011,1974.1,1973.8,0.47931763]
[1771331104510,0.0011,1974.1,1973.7,11.08327272]
[1771331104752,0.0011,1974.1,1973.7,11.56259035]
[1771331106309,0.0011,1974.1,1973.7,11.08327272]
[1771331106511,0.0011,1974.1,1973.7,11.56259035]
[1771331107753,0.0011,1974.1,1973.7,1.47031763]
[1771331108310,0.0011,1974.0,1973.7,1.47031763]
[1771331108825,0.0011,1974.0,1973.7,0.991]
[1771331110522,0.0011,1974.0,1973.8,0.999]
[1771331113243,0.46551256,1974.0,1973.4,0.999]
[1771331113741,0.46551256,1974.0,1973.2,1.0]
[1771331114539,0.48697261,1973.8,1973.2,1.0]
[1771331115849,0.48697261,1973.8,1973.1,1.001]
[1771331116920,0.48697261,1973.6,1973.1,1.001]
[1771331119230,1.26678489,1973.5,1973.1,1.001]
[1771331119937,1.26678489,1973.5,1973.2,0.001]
[1771331121148,1.7537575,1973.5,1973.2,0.001]
[1771331121331,1.75384957,1973.4,1973.2,0.001]
[1771331122041,0.48697261,1973.3,1973.2,0.001]
[1771331123823,1.26687696,1973.4,1973.2,0.001]
[1771331124352,1.75384957,1973.4,1973.2,0.001]
[1771331126434,1.75384957,1973.4,1973.1,0.001]
[1771331126636,0.48697261,1973.3,1973.1,0.001]
[1771331129059,1.26697749,1973.2,1973.1,0.001]
[1771331130324,1.75393633,1973.3,1973.1,0.001]
[1771331130649,1.26696372,1973.3,1973.1,0.001]
[1771331132154,5.06749886,1973.4,1973.1,0.001]
[1771331132346,5.06725802,1973.5,1973.1,0.001]
[1771331132948,5.06725802,1973.5,1973.2,0.001]
[1771331137363,1.26678489,1973.5,1973.2,0.001]
[1771331141160,5.06711309,1973.6,1973.2,0.001]
[1771331141547,1.26672071,1973.6,1973.2,0.46867486]
[1771331143359,5.06786022,1973.7,1973.2,0.46867486]
[1771331143862,0.48697261,1973.6,1973.2,0.001]
[1771331144047,0.48697261,1973.4,1973.2,0.001]
[1771331145171,0.48697261,1973.4,1973.0,0.001]
[1771331145353,10.59823524,1973.3,1973.0,0.001]
[1771331145665,0.49923682,1973.2,1973.0,0.001]
[1771331146163,0.49923682,1973.2,1972.5,0.49617016]
[1771331147067,0.49923682,1973.2,1972.5,1.76358899]
[1771331147252,1.26704171,1973.1,1972.5,1.76358899]
[1771331147567,1.26704171,1973.1,1972.5,0.49617016]
[1771331148041,1.26704171,1973.1,1973.0,0.001]
[1771331148242,1.76627853,1973.1,1972.5,1.76359698]
[1771331148671,1.76627853,1973.1,1972.5,0.49617016]
[1771331150854,1.76627853,1973.1,1972.5,1.76359126]
[1771331151968,1.72722917,1973.3,1972.7,0.49780319]
[1771331152471,1.72722917,1973.3,1972.7,1.76507499]
[1771331152774,1.72722917,1973.3,1972.6,13.90148717]
[1771331152775,0.46027013,1973.2,1972.5,0.49780319]
[1771331152973,0.46027013,1973.2,1972.6,0.49780319]
[1771331156879,1.26704171,1973.1,1972.6,0.49780319]
[1771331157882,1.72731184,1973.1,1972.5,1.76518017]
[1771331159752,1.72731184,1973.1,1972.6,0.001]
[1771331160081,0.0011,1973.0,1972.6,0.001]
[1771331160775,0.0011,1973.0,1972.6,0.49880319]
[1771331162081,0.0011,1973.0,1972.6,1.76615077]
[1771331163081,0.0011,1973.0,1972.6,0.49880319]
[1771331163384,0.0011,1973.0,1972.6,0.001]
[1771331163980,1.26820593,1973.0,1972.6,0.001]
[1771331164166,1.72847606,1973.0,1972.6,0.001]
[1771331164772,1.26820593,1973.0,1972.6,0.001]
[1771331165258,0.0011,1973.0,1972.6,0.001]
[1771331165700,0.0011,1973.0,1972.6,0.49880319]
[1771331166384,0.0011,1973.0,1972.6,1.76614966]
[1771331166590,0.0011,1973.0,1972.6,0.001]
[1771331168894,0.46137013,1973.0,1972.6,0.001]
[1771331169402,0.46027013,1972.8,1972.1,1.76546077]
[1771331169699,0.46027013,1972.8,1972.2,0.49780319]
[1771331170563,1.26729862,1972.7,1972.2,0.49780319]
[1771331170764,1.26729862,1972.7,1972.2,1.76541247]
[1771331171777,1.72756875,1972.7,1972.1,1.26764764]
[1771331171978,1.72756875,1972.7,1972.0,2.75550754]
[1771331175377,1.72756875,1972.7,1972.1,0.001]
[1771331175698,0.47366365,1972.6,1972.1,0.001]
[1771331177801,1.7410362,1972.6,1972.1,0.001]
[1771331178610,0.47476365,1972.9,1972.3,0.46997165]
[1771331178772,0.0011,1972.9,1972.3,0.46997165]
[1771331178977,0.0011,1972.9,1972.5,0.46997165]
[1771331179971,0.0011,1972.9,1972.3,1.73747569]
[1771331180184,0.47476365,1972.9,1972.1,0.47097165]
[1771331180388,0.47476365,1972.9,1972.2,0.99]
[1771331182186,1.74089803,1972.8,1972.2,2.72753745]
[1771331183181,1.74089803,1972.8,1972.2,2.72758694]
[1771331185987,1.26723438,1972.8,1972.3,0.46997165]
[1771331188108,1.26723438,1972.8,1972.3,1.73752024]
[1771331188509,1.7419338,1972.9,1972.3,1.73752024]
[1771331189092,0.0011,1972.9,1972.5,0.46997165]
[1771331190018,0.0011,1973.6,1973.2,0.46997165]
[1771331190194,0.0022,1973.6,1973.1,10.11455486]
[1771331190393,0.0022,1973.6,1973.2,0.99]
[1771331190594,0.0011,1973.8,1973.3,9.31750829]
[1771331190800,0.0011,1974.0,1973.6,0.46997165]
[1771331191191,0.0011,1974.1,1973.7,8.84753664]
[1771331191399,1.26750969,1974.1,1973.6,0.991]
[1771331191618,1.74004634,1974.2,1973.6,0.991]
[1771331192220,1.74004634,1974.2,1973.6,2.25766271]
[1771331192428,1.74004634,1974.2,1973.6,2.72763436]
[1771331192583,1.74004634,1974.2,1973.6,2.25766271]
[1771331193221,1.74004634,1974.2,1973.6,1.26666271]
[1771331193519,0.0011,1974.3,1973.7,0.46997165]
[1771331194394,0.0011,1974.3,1973.8,1.736564]
[1771331195516,0.0011,1974.3,1973.7,13.91414197]
[1771331195517,0.47476365,1974.3,1973.6,1.73665675]
[1771331196614,1.73999938,1974.2,1973.6,1.73665675]
[1771331197006,0.47366365,1974.2,1973.6,1.73665675]
[1771331200610,1.26742408,1974.3,1973.7,0.46997165]
[1771331201116,1.74108773,1974.3,1973.7,0.46997165]
[1771331201716,1.74108773,1974.3,1973.7,0.47097165]
[1771331202019,0.0011,1974.2,1973.7,0.47097165]
[1771331202702,0.0011,1974.2,1973.7,1.73760784]
[1771331205229,0.47122501,1974.2,1973.7,0.001]
[1771331207925,1.73760241,1974.2,1973.7,0.001]
[1771331209740,1.73760241,1974.2,1973.7,0.49146093]
[1771331209928,0.0011,1974.2,1973.8,1.26659235]
[1771331212714,0.0011,1974.2,1973.8,0.4527903]
[1771331214912,0.0011,1974.2,1973.9,1.26752819]
[1771331215240,0.0011,1974.1,1973.9,1.72031849]
[1771331216809,0.0011,1974.2,1973.9,1.72031849]
[1771331217037,0.0011,1974.2,1974.0,1.71920702]
[1771331217239,0.0011,1974.3,1974.1,0.4527903]
[1771331217829,0.0011,1974.4,1974.1,0.4527903]
[1771331219334,0.0011,1974.4,1974.2,1.71912603]
[1771331219643,0.0011,1974.4,1974.2,0.4527903]
[1771331220648,0.0011,1974.5,1974.2,0.4527903]
[1771331221246,1.26702206,1974.9,1974.4,0.4527903]
[1771331221422,0.0011,1974.9,1974.4,0.4527903]
[1771331221622,0.0011,1974.9,1974.4,1.71899422]
[1771331221949,0.0011,1974.9,1974.4,0.4527903]
[1771331222339,0.47180033,1974.9,1974.2,1.002]
[1771331222647,0.47070033,1974.7,1974.0,1.002]
[1771331223719,0.47070033,1974.5,1973.9,0.001]
[1771331224124,0.47070033,1974.5,1973.9,1.26752065]
[1771331224328,1.73677953,1974.6,1973.9,1.72031095]
[1771331224917,1.2660792,1974.6,1973.9,1.72031095]
[1771331225122,0.47070033,1974.5,1973.9,1.72031095]
[1771331226162,0.47070033,1974.3,1973.9,0.001]
[1771331227719,0.47070033,1974.2,1973.9,0.001]
[1771331227926,1.73690778,1974.4,1973.9,0.001]
[1771331228247,0.47070033,1974.4,1973.9,0.001]
[1771331228661,0.47180033,1974.4,1973.9,0.001]
[1771331230470,1.26627158,1974.3,1973.9,0.001]
[1771331236365,1.72263922,1974.3,1973.9,0.001]
[1771331236565,0.45636764,1974.2,1973.9,0.001]
[1771331237642,1.26627158,1974.3,1973.9,0.001]
[1771331239858,1.72263922,1974.3,1973.9,0.001]
[1771331242844,0.45636764,1974.2,1973.9,0.001]
[1771331244054,1.26639987,1974.1,1973.9,0.001]
[1771331246957,5.06603665,1974.4,1974.0,0.45107397]
[1771331247185,1.26630304,1974.3,1974.0,0.45107397]
[1771331247551,1.26630304,1974.3,1973.9,0.001]
[1771331249063,0.45636764,1974.3,1973.9,0.001]
[1771331251591,1.26633573,1974.2,1973.9,0.001]
[1771331253074,2.39833573,1974.2,1973.9,0.001]
[1771331254469,2.85470337,1974.2,1973.9,0.001]
[1771331258397,2.39833573,1974.2,1973.9,0.001]
[1771331259087,2.39833573,1974.2,1973.9,0.45207397]
[1771331259298,1.26633573,1974.2,1973.9,0.45207397]
[1771331259493,2.40333573,1974.2,1973.9,0.45207397]
[1771331261292,2.85970337,1974.2,1974.0,0.001]
[1771331261494,2.85970337,1974.2,1973.8,0.001]
[1771331262691,2.40333573,1974.2,1973.8,0.001]
[1771331263697,0.0011,1974.4,1973.9,0.45107397]
[1771331263885,1.139,1974.3,1973.9,0.45107397]
[1771331264404,2.40635484,1974.4,1973.9,0.45107397]
[1771331264996,0.0011,1974.4,1973.9,0.45107397]
[1771331265301,0.0011,1974.4,1974.1,0.47482611]
[1771331270809,0.0011,1974.5,1974.3,0.47482611]
[1771331270983,1.26716477,1974.7,1974.3,0.47482611]
[1771331270984,1.26711536,1974.7,1974.3,0.47482611]
[1771331271504,0.0011,1974.7,1974.3,0.47482611]